[Event "RUS-chT Rapid Men 2018"]
[Site "Sochi"]
[Date "2018.10.09"]
[Round "8"]
[White "Sergeyev, Alexander"]
[Black "Dilmukhametov, Artur"]
[Result "1-0"]
[ECO "D14"]
[WhiteElo "2397"]
[BlackElo "2353"]
[Annotator "NA"]
[PlyCount "87"]
[EventDate "2018.10.05"]
[EventType "swiss"]
[EventCountry "RUS"]
[SourceTitle "playchess.com"]
[Source "ChessBase"]
[SourceQuality "1"]
[TimeControl "900+10"]

1. Nf3 {[%emt 0:00:00]} d5 {[%emt 0:00:00]} 2. c4 {[%emt 0:00:00]} c6 {[%emt 0:00:00]} 3. d4 {[%emt 0:00:05]} Nf6 {[%emt 0:00:00]} 4. cxd5 {[%emt 0:00:20]} cxd5 {[%emt 0:00:00]} 5. Nc3 {[%emt 0:00:02]} Nc6 {[%emt 0:00:04]} 6. Bf4 {[%emt 0:00:13]} Bf5 {[%emt 0:00:07]} 7. e3 {[%emt 0:00:07]} e6 {[%emt 0:00:07]} 8. Bb5 {[%emt 0:02:46]} Nd7 {[%emt 0:00:02]} 9. O-O {[%emt 0:00:08]} Rc8 {[%emt 0:00:58]} 10. Bg3 {[%emt 0:02:30]} Be7 {[%emt 0:01:03]} 11. Qe2 {[%emt 0:01:32]} O-O {[%emt 0:00:38]} 12. Rad1 {[%emt 0:00:09]} a6 13. Bd3 {[%emt 0:00:43]} Bxd3 {[%emt 0:03:24]} 14. Qxd3 {[%emt 0:00:16]} b5 {[%emt 0:00:02]} 15. e4 {[%emt 0:00:15]} dxe4 {[%emt 0:00:17]} 16. Nxe4 {[%emt 0:00:10]} Nb4 {[%emt 0:00:23]} 17. Qb3 {[%emt 0:00:11]} Qb6 {[%emt 0:01:49]} 18. Nc5 {[%emt 0:01:06]} Nxc5 {[%emt 0:04:59]} 19. Qxb4 {[%emt 0:00:05]} Nd3 {[%emt 0:00:10]} 20. Qxe7 {[%emt 0:00:15]} Nxb2 {[%emt 0:00:01]} 21. Rc1 {[%emt 0:01:01]} Nc4 {[%emt 0:00:07]} 22. h4 {[%emt 0:01:47]} Qa5 {[%emt 0:01:38]} 23. Rc2 {[%emt 0:00:27]} Rce8 {[%emt 0:00:43]} 24. Qb7 {[%emt 0:00:14]} Qa4 {[%emt 0:00:07]} 25. Rfc1 {[%emt 0:00:11]} Rd8 {[%emt 0:00:05]} 26. Bc7 {[%emt 0:01:10]} Rd5 {[%emt 0:00:15]} 27. Bb6 {[%emt 0:00:12]} h6 {[%emt 0:00:30]} 28. Bc5 {[%emt 0:00:14]} Rfd8 {[%emt 0:00:01]} 29. Bb6 {[%emt 0:02:04]} R5d7 {[%emt 0:00:34]} 30. Bc7 {[%emt 0:00:12]} Re7 {[%emt 0:00:26]} 31. Qc6 {[%emt 0:00:17]} Rc8 {[%emt 0:01:08]} 32. Rxc4 {[%emt 0:00:02]} Qxc4 {[%emt 0:00:12]} 33. Rxc4 {[%emt 0:00:06]} bxc4 {[%emt 0:00:00]} 34. Qxc4 {[%emt 0:00:05]} Rcxc7 {[%emt 0:00:04]} 35. Qxa6 {[%emt 0:00:01]} Ra7 {[%emt 0:00:03]} 36. Qe2 {[%emt 0:00:07]} Ra4 {[%emt 0:00:05]} 37. d5 {[%emt 0:00:07]} Raa7 {[%emt 0:00:21]} 38. d6 {[%emt 0:00:07]} Red7 {[%emt 0:00:01]} 39. Qb5 {[%emt 0:00:05]} Rd8 {[%emt 0:00:01]} 40. Ne5 {[%emt 0:00:06]} Rxa2 {[%emt 0:00:13]} 41. Qb7 {[%emt 0:00:11]} Rf8 {[%emt 0:00:02]} 42. d7 {[%emt 0:00:07]} Rd2 {[%emt 0:00:01]} 43. Nc6 {[%emt 0:00:05]} g6 {[%emt 0:00:42]} 44. Qc7 {[%emt 0:00:06]} 1-0

[Event "RUS-chT Rapid Men 2018"]
[Site "Sochi"]
[Date "2018.10.09"]
[Round "8"]
[White "Tekeyev, Zaur"]
[Black "Garifullina, Leya"]
[Result "1-0"]
[ECO "C50"]
[WhiteElo "2392"]
[BlackElo "2106"]
[Annotator "NA"]
[PlyCount "91"]
[EventDate "2018.10.05"]
[EventType "swiss"]
[EventCountry "RUS"]
[SourceTitle "playchess.com"]
[Source "ChessBase"]
[SourceQuality "1"]
[TimeControl "900+10"]

1. e4 {[%emt 0:00:00]} e5 {[%emt 0:00:00]} 2. Nf3 {[%emt 0:00:00]} Nc6 {[%emt 0:00:00]} 3. Bc4 {[%emt 0:00:00]} Bc5 {[%emt 0:00:00]} 4. d3 {[%emt 0:00:00]} Nf6 {[%emt 0:00:04]} 5. O-O {[%emt 0:00:00]} d6 {[%emt 0:00:03]} 6. c3 {[%emt 0:00:03]} O-O {[%emt 0:00:09]} 7. Bg5 {[%emt 0:00:48]} h6 {[%emt 0:00:13]} 8. Bh4 {[%emt 0:00:03]} Bb6 {[%emt 0:01:04]} 9. Nbd2 {[%emt 0:00:27]} Be6 {[%emt 0:00:18]} 10. Bb5 {[%emt 0:02:28]} Bd7 {[%emt 0:03:25]} 11. Ba4 {[%emt 0:00:32]} Qe7 {[%emt 0:00:46]} 12. Nc4 {[%emt 0:00:35]} Kh8 {[%emt 0:02:09]} 13. Ne3 {[%emt 0:00:27]} Bxe3 {[%emt 0:01:23]} 14. fxe3 {[%emt 0:00:03]} Nb8 {[%emt 0:00:36]} 15. Bc2 {[%emt 0:00:43]} Bg4 {[%emt 0:00:55]} 16. h3 {[%emt 0:01:23]} Bh5 {[%emt 0:00:41]} 17. g4 {[%emt 0:03:49]} Bg6 {[%emt 0:00:02]} 18. Qe1 {[%emt 0:00:17]} Nbd7 {[%emt 0:00:23]} 19. g5 {[%emt 0:00:04]} hxg5 {[%emt 0:00:58]} 20. Bxg5 {[%emt 0:00:03]} c6 {[%emt 0:00:40]} 21. Nh4 {[%emt 0:00:18]} Bh7 {[%emt 0:00:25]} 22. Nf5 {[%emt 0:00:21]} Qe6 {[%emt 0:00:23]} 23. Qh4 {[%emt 0:00:55]} g6 {[%emt 0:00:46]} 24. Nxd6 {[%emt 0:02:35]} Ng8 {[%emt 0:00:47]} 25. Nxf7+ {[%emt 0:00:53]} Rxf7 {[%emt 0:00:07]} 26. Bb3 {[%emt 0:00:00]} Rxf1+ {[%emt 0:00:23]} 27. Rxf1 {[%emt 0:00:01]} Qe8 {[%emt 0:00:15]} 28. Rf7 {[%emt 0:00:09]} Qxf7 {[%emt 0:00:17]} 29. Bxf7 {[%emt 0:00:02]} Kg7 {[%emt 0:00:08]} 30. Be6 {[%emt 0:00:28]} Nc5 {[%emt 0:00:10]} 31. Bb3 {[%emt 0:02:05]} Nxd3 {[%emt 0:00:16]} 32. Qg4 {[%emt 0:00:25]} Nc5 {[%emt 0:00:10]} 33. Bc2 {[%emt 0:00:09]} a5 {[%emt 0:00:48]} 34. b4 {[%emt 0:00:15]} axb4 {[%emt 0:00:01]} 35. cxb4 {[%emt 0:00:01]} Rxa2 {[%emt 0:00:02]} 36. bxc5 {[%emt 0:00:03]} Rxc2 {[%emt 0:00:02]} 37. Qd7+ {[%emt 0:00:05]} Kh8 {[%emt 0:00:17]} 38. Qd6 {[%emt 0:00:02]} Rc1+ {[%emt 0:00:17]} 39. Kf2 {[%emt 0:00:04]} Rc2+ {[%emt 0:00:08]} 40. Kg3 {[%emt 0:00:02]} Kg7 {[%emt 0:00:11]} 41. Qxe5+ {[%emt 0:00:06]} Kf8 {[%emt 0:00:14]} 42. Qb8+ {[%emt 0:00:05]} Kg7 {[%emt 0:00:05]} 43. Qxb7+ {[%emt 0:00:05]} Kh8 {[%emt 0:00:02]} 44. Qxc6 {[%emt 0:00:08]} Rd2 {[%emt 0:00:07]} 45. Qe6 {[%emt 0:00:06]} Rc2 {[%emt 0:00:12]} 46. Qe5+ {[%emt 0:00:03]} 1-0

[Event "RUS-chT Rapid Men 2018"]
[Site "Sochi"]
[Date "2018.10.09"]
[Round "8"]
[White "Ozgibcev, Anatoly"]
[Black "Potapov, Pavel"]
[Result "0-1"]
[ECO "B22"]
[WhiteElo "2368"]
[BlackElo "2515"]
[Annotator "ChessBase"]
[PlyCount "71"]
[EventDate "2018.10.05"]
[EventType "swiss"]
[EventCountry "RUS"]
[SourceTitle "playchess.com"]
[Source "ChessBase"]
[SourceQuality "1"]
[TimeControl "900+10"]

1. e4 {[%emt 0:00:00]} c5 {[%emt 0:00:00]} 2. c3 {[%emt 0:00:00]} Nf6 {[%emt 0:00:00]} 3. e5 {[%emt 0:00:00]} Nd5 {[%emt 0:00:01]} 4. d4 {[%emt 0:00:00]} cxd4 {[%emt 0:00:03]} 5. Nf3 {[%emt 0:00:00]} Nc6 {[%emt 0:00:03]} 6. Bc4 {[%emt 0:00:04]} Nb6 {[%emt 0:00:02]} 7. Bb3 {[%emt 0:00:01]} g6 {[%emt 0:00:02]} 8. Ng5 {[%emt 0:01:38]} d5 {[%emt 0:00:07]} 9. cxd4 {[%emt 0:00:10]} Bg7 {[%emt 0:00:20]} 10. O-O {[%emt 0:00:13]} O-O {[%emt 0:00:17]} 11. Nc3 {[%emt 0:00:12]} h6 {[%emt 0:00:41]} 12. Nf3 {[%emt 0:00:02]} Bg4 {[%emt 0:00:04]} 13. Be3 {[%emt 0:00:22]} f6 {[%emt 0:02:05]} 14. Qd3 {[%emt 0:02:40]} Bxf3 {[%emt 0:00:38]} 15. Qxg6 {[%emt 0:00:46]} fxe5 {[%emt 0:02:09]} 16. Bxh6 {[%emt 0:00:22]} Rf7 {[%emt 0:00:06]} 17. gxf3 {[%emt 0:01:42]} Nxd4 {[%emt 0:00:14]} 18. Ne4 {[%emt 0:00:31]} Nxf3+ {[%emt 0:03:03]} 19. Kh1 {[%emt 0:00:03]} Rc8 {[%emt 0:04:34]} 20. Rac1 {[%emt 0:02:02]} Rxc1 {[%emt 0:00:15]} 21. Rxc1 {[%emt 0:00:02]} Qd7 {[%emt 0:00:09]} 22. Rg1 {[%emt 0:03:14]} Nxg1 {[%emt 0:01:36]} 23. Ng5 {[%emt 0:00:44]} Qf5 {[%emt 0:00:02]} 24. Qxf7+ {[%emt 0:00:10]} Qxf7 {[%emt 0:00:01]} 25. Nxf7 {[%emt 0:00:01]} Kxf7 {[%emt 0:00:11]} 26. Bxg7 {[%emt 0:00:39]} Kxg7 {[%emt 0:00:05]} 27. Kxg1 {[%emt 0:00:02]} e4 {[%emt 0:00:02]} 28. Kg2 {[%emt 0:00:15]} Kf6 {[%emt 0:00:02]} 29. Kg3 {[%emt 0:00:15]} e6 {[%emt 0:00:15]} 30. Kf4 {[%emt 0:00:23]} Nd7 {[%emt 0:00:07]} 31. h4 {[%emt 0:01:43]} Ne5 {[%emt 0:00:16]} 32. h5 {[%emt 0:00:28]} Nd3+ {[%emt 0:00:53]} 33. Ke3 {[%emt 0:00:02]} Nxb2 {[%emt 0:00:07]} 34. Kd4 {[%emt 0:00:24]} b6 {[%emt 0:00:31]} 35. h6 {[%emt 0:01:07]} Kg6 {[%emt 0:00:19]} 36. Bxd5 0-1

[Event "RUS-chT Rapid Men 2018"]
[Site "Sochi"]
[Date "2018.10.09"]
[Round "8"]
[White "Ivlev, Aleksey"]
[Black "Derjabin, Ilja"]
[Result "1-0"]
[ECO "A53"]
[WhiteElo "2326"]
[BlackElo "2345"]
[Annotator "NA"]
[PlyCount "89"]
[EventDate "2018.10.05"]
[EventType "swiss"]
[EventCountry "RUS"]
[SourceTitle "playchess.com"]
[Source "ChessBase"]
[SourceQuality "1"]
[TimeControl "900+10"]

1. d4 {[%emt 0:00:00]} Nf6 {[%emt 0:00:00]} 2. c4 {[%emt 0:00:00]} d6 {[%emt 0:00:00]} 3. Nc3 {[%emt 0:00:00]} Bf5 {[%emt 0:00:00]} 4. g3 {[%emt 0:00:08]} e5 {[%emt 0:00:10]} 5. Bg2 {[%emt 0:00:05]} c6 {[%emt 0:00:01]} 6. e4 {[%emt 0:00:19]} Bg6 {[%emt 0:00:27]} 7. Nge2 {[%emt 0:00:01]} Nbd7 {[%emt 0:00:44]} 8. O-O {[%emt 0:00:04]} Be7 {[%emt 0:00:01]} 9. h3 {[%emt 0:00:01]} h6 {[%emt 0:00:36]} 10. b3 {[%emt 0:01:05]} O-O {[%emt 0:00:06]} 11. Bb2 {[%emt 0:00:02]} Re8 {[%emt 0:00:08]} 12. Re1 {[%emt 0:00:23]} Bf8 {[%emt 0:00:20]} 13. d5 {[%emt 0:00:16]} c5 {[%emt 0:00:18]} 14. Nc1 {[%emt 0:00:04]} Bh7 {[%emt 0:00:40]} 15. Nd3 {[%emt 0:00:04]} g5 {[%emt 0:00:06]} 16. a3 {[%emt 0:00:19]} Bg7 {[%emt 0:00:03]} 17. b4 {[%emt 0:00:01]} b6 {[%emt 0:00:04]} 18. a4 {[%emt 0:05:17]} a5 {[%emt 0:03:28]} 19. bxc5 {[%emt 0:00:02]} bxc5 {[%emt 0:00:11]} 20. Nb5 {[%emt 0:00:01]} Nb6 {[%emt 0:00:01]} 21. Qc2 {[%emt 0:00:36]} Bf8 {[%emt 0:00:04]} 22. Bc1 {[%emt 0:01:37]} Nfd7 {[%emt 0:01:35]} 23. Bd2 {[%emt 0:00:35]} f5 {[%emt 0:00:17]} 24. f3 {[%emt 0:00:00]} Nf6 {[%emt 0:00:14]} 25. Nc1 {[%emt 0:00:07]} fxe4 {[%emt 0:02:03]} 26. fxe4 {[%emt 0:00:01]} g4 {[%emt 0:00:03]} 27. h4 {[%emt 0:00:20]} Nh5 {[%emt 0:00:16]} 28. Ra3 {[%emt 0:00:23]} Be7 {[%emt 0:01:28]} 29. Bxh6 {[%emt 0:00:19]} Bxh4 {[%emt 0:00:01]} 30. Qe2 {[%emt 0:00:42]} Kh8 {[%emt 0:02:03]} 31. Qxg4 {[%emt 0:00:13]} Bxg3 {[%emt 0:00:16]} 32. Qxh5 {[%emt 0:00:39]} Rg8 {[%emt 0:00:27]} 33. Rf1 {[%emt 0:00:20]} Bf4 {[%emt 0:01:08]} 34. Bxf4 {[%emt 0:00:18]} exf4 {[%emt 0:00:01]} 35. Rxf4 {[%emt 0:00:37]} Nxc4 {[%emt 0:00:08]} 36. Rh3 {[%emt 0:00:03]} Rg7 {[%emt 0:00:01]} 37. Nd3 {[%emt 0:01:42]} Qg8 {[%emt 0:00:15]} 38. Rf2 {[%emt 0:00:37]} Rf8 {[%emt 0:00:21]} 39. Qe2 {[%emt 0:00:18]} Re8 {[%emt 0:01:06]} 40. Kh1 {[%emt 0:00:19]} Ree7 {[%emt 0:00:46]} 41. Nf4 {[%emt 0:00:16]} Ne5 {[%emt 0:00:00]} 42. Ne6 {[%emt 0:00:04]} Rgf7 {[%emt 0:00:34]} 43. Nxd6 {[%emt 0:00:04]} Rxf2 {[%emt 0:00:05]} 44. Qxf2 {[%emt 0:00:01]} Ng4 {[%emt 0:00:12]} 45. Qb2+ {[%emt 0:00:04]} 1-0

[Event "RUS-chT Rapid Men 2018"]
[Site "Sochi"]
[Date "2018.10.09"]
[Round "8"]
[White "Inozemtsev, Sergei"]
[Black "Belyakov, Bogdan"]
[Result "1-0"]
[ECO "C65"]
[WhiteElo "2310"]
[BlackElo "2458"]
[Annotator "ChessBase"]
[PlyCount "89"]
[EventDate "2018.10.05"]
[EventType "swiss"]
[EventCountry "RUS"]
[SourceTitle "playchess.com"]
[Source "ChessBase"]
[SourceQuality "1"]
[TimeControl "900+10"]

1. e4 {[%emt 0:00:00]} e5 {[%emt 0:00:00]} 2. Nf3 {[%emt 0:00:00]} Nc6 {[%emt 0:00:00]} 3. Bb5 {[%emt 0:00:07]} Nf6 {[%emt 0:00:00]} 4. d3 {[%emt 0:00:18]} Bc5 {[%emt 0:00:00]} 5. c3 {[%emt 0:01:30]} O-O {[%emt 0:00:04]} 6. O-O {[%emt 0:00:06]} d6 {[%emt 0:00:02]} 7. Nbd2 {[%emt 0:01:39]} a6 {[%emt 0:00:02]} 8. Bxc6 {[%emt 0:00:13]} bxc6 {[%emt 0:00:03]} 9. Nb3 {[%emt 0:00:03]} Bb6 {[%emt 0:00:24]} 10. Be3 {[%emt 0:00:25]} Re8 {[%emt 0:01:14]} 11. c4 {[%emt 0:00:58]} h6 {[%emt 0:01:31]} 12. c5 {[%emt 0:01:01]} dxc5 {[%emt 0:01:29]} 13. Rc1 {[%emt 0:00:29]} Rb8 {[%emt 0:02:41]} 14. Bxc5 {[%emt 0:01:05]} Be6 {[%emt 0:00:04]} 15. Bxb6 {[%emt 0:00:22]} Rxb6 {[%emt 0:00:12]} 16. Na5 {[%emt 0:00:05]} Rxb2 {[%emt 0:01:15]} 17. Nxc6 {[%emt 0:00:52]} Qd6 {[%emt 0:00:34]} 18. Ncxe5 {[%emt 0:00:21]} Rxa2 {[%emt 0:00:07]} 19. Rc6 {[%emt 0:02:12]} Qd8 {[%emt 0:00:04]} 20. Qb1 {[%emt 0:00:25]} Ra3 {[%emt 0:02:32]} 21. Qc1 {[%emt 0:00:15]} Ra2 {[%emt 0:00:20]} 22. Qb1 {[%emt 0:00:19]} Ra3 {[%emt 0:00:02]} 23. Qc1 {[%emt 0:00:14]} Ra2 {[%emt 0:00:28]} 24. Rxc7 {[%emt 0:01:23]} Ng4 {[%emt 0:00:06]} 25. Nxg4 {[%emt 0:00:57]} Bxg4 {[%emt 0:00:03]} 26. Qf4 {[%emt 0:00:08]} Bh5 {[%emt 0:00:55]} 27. Rc3 {[%emt 0:03:08]} Qa5 {[%emt 0:00:36]} 28. Rcc1 {[%emt 0:00:09]} Ra3 {[%emt 0:00:16]} 29. Rfd1 {[%emt 0:00:14]} Rd8 {[%emt 0:00:01]} 30. g4 {[%emt 0:00:02]} g5 {[%emt 0:01:58]} 31. Qg3 {[%emt 0:00:17]} Bg6 {[%emt 0:00:02]} 32. Ne5 {[%emt 0:00:02]} Rc3 {[%emt 0:00:31]} 33. Nc6 {[%emt 0:00:10]} Rxc1 {[%emt 0:00:03]} 34. Rxc1 {[%emt 0:00:14]} Qd2 {[%emt 0:00:10]} 35. Ne7+ {[%emt 0:00:16]} Kh7 {[%emt 0:00:13]} 36. Qc7 {[%emt 0:00:16]} Qxd3 {[%emt 0:00:16]} 37. Nxg6 {[%emt 0:00:15]} Kxg6 {[%emt 0:00:21]} 38. Rc6+ {[%emt 0:00:02]} f6 {[%emt 0:00:50]} 39. h3 {[%emt 0:00:43]} Qxh3 {[%emt 0:01:24]} 40. Qxd8 {[%emt 0:00:12]} Qxg4+ {[%emt 0:00:02]} 41. Kf1 {[%emt 0:00:09]} Qh3+ {[%emt 0:00:02]} 42. Ke1 {[%emt 0:00:03]} Qh1+ {[%emt 0:00:03]} 43. Kd2 {[%emt 0:00:01]} Kh5 {[%emt 0:00:04]} 44. Qxf6 {[%emt 0:00:08]} Qb1 {[%emt 0:00:21]} 45. Qf3+ {[%emt 0:00:14]} 1-0

[Event "RUS-chT Rapid Men 2018"]
[Site "Sochi"]
[Date "2018.10.09"]
[Round "8"]
[White "Kurbedinov, Ramis"]
[Black "Uzhva, Andrey"]
[Result "1/2-1/2"]
[ECO "A05"]
[WhiteElo "2305"]
[BlackElo "2270"]
[Annotator "NA"]
[PlyCount "98"]
[EventDate "2018.10.05"]
[EventType "swiss"]
[EventCountry "RUS"]
[SourceTitle "playchess.com"]
[Source "ChessBase"]
[SourceQuality "1"]
[TimeControl "900+10"]

1. Nf3 {[%emt 0:00:00]} Nf6 {[%emt 0:00:00]} 2. c4 {[%emt 0:00:00]} g6 {[%emt 0:00:00]} 3. Nc3 {[%emt 0:00:00]} Bg7 {[%emt 0:00:08]} 4. e4 {[%emt 0:00:03]} c5 {[%emt 0:00:03]} 5. d4 {[%emt 0:00:26]} cxd4 {[%emt 0:00:03]} 6. Nxd4 {[%emt 0:00:01]} d6 {[%emt 0:00:38]} 7. Be2 {[%emt 0:00:07]} Nc6 {[%emt 0:00:04]} 8. Nc2 {[%emt 0:00:08]} O-O {[%emt 0:01:48]} 9. O-O {[%emt 0:00:02]} h6 {[%emt 0:01:55]} 10. Be3 {[%emt 0:00:12]} b6 {[%emt 0:00:14]} 11. f3 {[%emt 0:00:36]} Bb7 {[%emt 0:00:05]} 12. Qd2 {[%emt 0:00:05]} Kh7 {[%emt 0:00:01]} 13. Rac1 {[%emt 0:01:02]} Rc8 {[%emt 0:00:03]} 14. b3 {[%emt 0:00:14]} Qd7 {[%emt 0:01:56]} 15. Rfd1 {[%emt 0:00:07]} Rfd8 {[%emt 0:00:01]} 16. Nd5 {[%emt 0:00:48]} Ne8 {[%emt 0:00:06]} 17. Nd4 {[%emt 0:00:31]} e6 {[%emt 0:00:49]} 18. Nc3 {[%emt 0:00:13]} Qe7 {[%emt 0:00:31]} 19. Ncb5 {[%emt 0:00:30]} Ba8 {[%emt 0:01:13]} 20. Bf1 {[%emt 0:00:37]} Rd7 {[%emt 0:00:33]} 21. Qf2 {[%emt 0:00:17]} Nb4 {[%emt 0:00:26]} 22. Nc3 {[%emt 0:00:58]} Rdd8 {[%emt 0:00:43]} 23. Rd2 {[%emt 0:01:18]} Nc6 {[%emt 0:00:54]} 24. Rcd1 {[%emt 0:00:20]} Ne5 {[%emt 0:00:04]} 25. a4 {[%emt 0:00:36]} Nc6 {[%emt 0:00:44]} 26. Nxc6 {[%emt 0:00:14]} Bxc6 {[%emt 0:00:01]} 27. Bd4 {[%emt 0:00:07]} Qg5 {[%emt 0:00:40]} 28. Bxg7 {[%emt 0:00:16]} Kxg7 {[%emt 0:00:01]} 29. Nb5 {[%emt 0:00:09]} Bxb5 {[%emt 0:00:28]} 30. axb5 {[%emt 0:00:01]} e5 {[%emt 0:00:41]} 31. Ra2 {[%emt 0:00:33]} Rc7 {[%emt 0:00:04]} 32. g3 {[%emt 0:00:35]} Rdd7 {[%emt 0:00:14]} 33. h4 {[%emt 0:00:22]} Qf6 {[%emt 0:00:05]} 34. Bh3 {[%emt 0:00:07]} Re7 {[%emt 0:00:01]} 35. Kg2 {[%emt 0:00:11]} Kf8 {[%emt 0:00:37]} 36. Qd2 {[%emt 0:00:56]} Kg7 {[%emt 0:00:05]} 37. Rda1 {[%emt 0:00:59]} Kh7 {[%emt 0:00:08]} 38. Ra6 {[%emt 0:00:19]} Qg7 {[%emt 0:00:20]} 39. Qd5 {[%emt 0:00:31]} h5 {[%emt 0:00:28]} 40. Qa8 {[%emt 0:00:08]} f6 {[%emt 0:00:11]} 41. Qd8 {[%emt 0:00:28]} Qh6 {[%emt 0:00:29]} 42. Qa8 {[%emt 0:00:50]} Qd2+ {[%emt 0:00:01]} 43. Kh1 {[%emt 0:00:08]} Qf2 {[%emt 0:00:01]} 44. Rxa7 {[%emt 0:01:42]} Qxg3 {[%emt 0:00:14]} 45. Bg2 {[%emt 0:00:03]} Qxh4+ {[%emt 0:00:11]} 46. Kg1 {[%emt 0:00:01]} Rxa7 {[%emt 0:00:58]} 47. Rxa7 {[%emt 0:00:01]} Qe1+ {[%emt 0:00:01]} 48. Kh2 {[%emt 0:00:02]} Qh4+ {[%emt 0:00:01]} 49. Kg1 {[%emt 0:00:01]} Qe1+ 1/2-1/2

[Event "RUS-chT Rapid Men 2018"]
[Site "Sochi"]
[Date "2018.10.09"]
[Round "8"]
[White "Rozhko, Dmitry"]
[Black "Kharitonov, Egor"]
[Result "1-0"]
[ECO "E09"]
[WhiteElo "2305"]
[BlackElo "2387"]
[Annotator "NA"]
[PlyCount "85"]
[EventDate "2018.10.05"]
[EventType "swiss"]
[EventCountry "RUS"]
[SourceTitle "playchess.com"]
[Source "ChessBase"]
[SourceQuality "1"]
[TimeControl "900+10"]

1. d4 {[%emt 0:00:00]} d5 {[%emt 0:00:00]} 2. Nf3 {[%emt 0:00:00]} e6 {[%emt 0:00:00]} 3. g3 {[%emt 0:00:00]} Nf6 {[%emt 0:00:00]} 4. Bg2 {[%emt 0:00:00]} Be7 {[%emt 0:00:00]} 5. c4 {[%emt 0:00:00]} O-O {[%emt 0:00:01]} 6. Nbd2 {[%emt 0:00:04]} Nbd7 {[%emt 0:00:03]} 7. O-O {[%emt 0:00:03]} c6 {[%emt 0:00:05]} 8. Qc2 {[%emt 0:00:01]} b6 {[%emt 0:00:02]} 9. e4 {[%emt 0:00:02]} dxc4 {[%emt 0:00:01]} 10. Nxc4 {[%emt 0:00:07]} Bb7 {[%emt 0:00:02]} 11. Rd1 {[%emt 0:00:27]} c5 {[%emt 0:01:28]} 12. Nfe5 {[%emt 0:00:59]} b5 {[%emt 0:01:49]} 13. Nxd7 {[%emt 0:00:54]} Nxd7 {[%emt 0:01:09]} 14. Ne3 {[%emt 0:00:07]} cxd4 {[%emt 0:01:41]} 15. Rxd4 {[%emt 0:00:03]} Rc8 {[%emt 0:02:46]} 16. Qd1 {[%emt 0:00:14]} Rc7 {[%emt 0:00:22]} 17. Bd2 {[%emt 0:00:09]} Bc5 {[%emt 0:00:16]} 18. Rd3 {[%emt 0:00:50]} Qe7 {[%emt 0:00:37]} 19. Ba5 {[%emt 0:00:21]} Ne5 {[%emt 0:01:15]} 20. Bxc7 {[%emt 0:00:53]} Nxd3 {[%emt 0:00:02]} 21. Qxd3 {[%emt 0:00:17]} Qxc7 {[%emt 0:00:10]} 22. Qxb5 {[%emt 0:00:35]} Bxe3 {[%emt 0:00:10]} 23. fxe3 {[%emt 0:00:12]} Rd8 {[%emt 0:00:22]} 24. Qe2 {[%emt 0:01:48]} Qc5 {[%emt 0:00:27]} 25. Qe1 {[%emt 0:01:15]} Rd3 {[%emt 0:00:22]} 26. Rc1 {[%emt 0:00:23]} Qb6 {[%emt 0:02:20]} 27. Rc3 {[%emt 0:00:21]} Rd7 {[%emt 0:00:05]} 28. Rc2 {[%emt 0:03:05]} h6 {[%emt 0:01:30]} 29. Qc3 {[%emt 0:01:03]} Ba6 {[%emt 0:01:02]} 30. Rd2 {[%emt 0:00:05]} Rc7 {[%emt 0:00:19]} 31. Qd4 {[%emt 0:00:13]} Rc1+ {[%emt 0:00:14]} 32. Kf2 {[%emt 0:00:10]} Qb5 {[%emt 0:00:01]} 33. g4 {[%emt 0:02:06]} h5 {[%emt 0:00:54]} 34. a4 {[%emt 0:00:34]} Rf1+ {[%emt 0:00:52]} 35. Kg3 {[%emt 0:00:18]} h4+ {[%emt 0:00:12]} 36. Kh3 {[%emt 0:00:53]} Qb3 {[%emt 0:00:02]} 37. Qd8+ {[%emt 0:00:05]} Kh7 {[%emt 0:00:05]} 38. Qxh4+ {[%emt 0:00:03]} Kg6 {[%emt 0:00:01]} 39. Qh5+ {[%emt 0:00:41]} Kf6 {[%emt 0:00:01]} 40. e5+ {[%emt 0:00:20]} Ke7 {[%emt 0:00:03]} 41. Qg5+ {[%emt 0:00:05]} f6 {[%emt 0:00:11]} 42. Qxg7+ {[%emt 0:00:12]} Ke8 {[%emt 0:00:01]} 43. Bc6# 1-0

[Event "RUS-chT Rapid Men 2018"]
[Site "Sochi"]
[Date "2018.10.09"]
[Round "8"]
[White "Kretov, Evgenij"]
[Black "Klimentov, Evgeny"]
[Result "1-0"]
[ECO "E00"]
[WhiteElo "2219"]
[BlackElo "2135"]
[Annotator "NA"]
[PlyCount "105"]
[EventDate "2018.10.05"]
[EventType "swiss"]
[EventCountry "RUS"]
[SourceTitle "playchess.com"]
[Source "ChessBase"]
[SourceQuality "1"]
[TimeControl "900+10"]

1. d4 {[%emt 0:00:00]} Nf6 {[%emt 0:00:00]} 2. c4 {[%emt 0:00:00]} e6 {[%emt 0:00:00]} 3. Nc3 {[%emt 0:00:00]} b6 {[%emt 0:00:00]} 4. e4 {[%emt 0:00:02]} Bb7 {[%emt 0:00:05]} 5. f3 {[%emt 0:00:29]} Bb4 {[%emt 0:00:30]} 6. Qc2 {[%emt 0:00:09]} c5 {[%emt 0:01:10]} 7. d5 {[%emt 0:00:04]} exd5 {[%emt 0:00:06]} 8. cxd5 {[%emt 0:00:02]} O-O {[%emt 0:00:10]} 9. Bd3 {[%emt 0:00:52]} d6 {[%emt 0:00:11]} 10. Nge2 {[%emt 0:00:11]} Nbd7 {[%emt 0:00:03]} 11. a3 {[%emt 0:00:10]} Ba5 {[%emt 0:00:14]} 12. O-O {[%emt 0:00:20]} Ne5 {[%emt 0:00:08]} 13. Ng3 {[%emt 0:00:24]} c4 {[%emt 0:00:43]} 14. Be2 {[%emt 0:00:03]} b5 {[%emt 0:00:01]} 15. h3 {[%emt 0:01:12]} Re8 {[%emt 0:01:05]} 16. Kh2 {[%emt 0:00:41]} a6 {[%emt 0:00:08]} 17. f4 {[%emt 0:00:47]} Ng6 {[%emt 0:00:21]} 18. Bd2 {[%emt 0:01:09]} Nf8 {[%emt 0:00:59]} 19. Rae1 {[%emt 0:01:48]} N6d7 {[%emt 0:01:23]} 20. Be3 {[%emt 0:00:34]} Bb6 {[%emt 0:00:14]} 21. Qd2 {[%emt 0:00:06]} Bxe3 {[%emt 0:00:45]} 22. Qxe3 {[%emt 0:00:02]} Nc5 {[%emt 0:00:02]} 23. e5 {[%emt 0:01:06]} Bc8 {[%emt 0:02:48]} 24. Nce4 {[%emt 0:01:32]} Nxe4 {[%emt 0:00:17]} 25. Qxe4 {[%emt 0:00:24]} Ra7 {[%emt 0:00:32]} 26. Bf3 {[%emt 0:01:48]} Rae7 {[%emt 0:01:50]} 27. Nf5 {[%emt 0:00:34]} Bxf5 {[%emt 0:00:58]} 28. Qxf5 {[%emt 0:00:01]} dxe5 {[%emt 0:00:23]} 29. fxe5 {[%emt 0:00:12]} Rxe5 {[%emt 0:00:10]} 30. Rxe5 {[%emt 0:00:57]} Qc7 {[%emt 0:00:36]} 31. Rfe1 {[%emt 0:00:56]} f6 {[%emt 0:00:40]} 32. Rd1 {[%emt 0:01:46]} Qd6 {[%emt 0:00:27]} 33. Kh1 {[%emt 0:00:10]} Rxe5 {[%emt 0:00:05]} 34. Qc8 {[%emt 0:00:02]} Kf7 {[%emt 0:00:22]} 35. a4 {[%emt 0:00:16]} Nd7 {[%emt 0:01:01]} 36. axb5 {[%emt 0:00:01]} axb5 {[%emt 0:00:01]} 37. Qc6 {[%emt 0:01:11]} Qe7 {[%emt 0:01:35]} 38. Qxb5 {[%emt 0:00:47]} Re1+ {[%emt 0:00:02]} 39. Rxe1 {[%emt 0:00:01]} Qxe1+ {[%emt 0:00:01]} 40. Kh2 {[%emt 0:00:01]} Ne5 {[%emt 0:00:42]} 41. Qb7+ {[%emt 0:00:20]} Kg6 {[%emt 0:00:03]} 42. d6 {[%emt 0:00:17]} Qe3 {[%emt 0:00:43]} 43. Be4+ {[%emt 0:00:27]} Kh6 {[%emt 0:00:02]} 44. Qd5 {[%emt 0:00:06]} Qa7 {[%emt 0:00:23]} 45. Qd2+ {[%emt 0:00:09]} g5 {[%emt 0:00:01]} 46. Bf5 {[%emt 0:00:03]} Qb8 {[%emt 0:00:10]} 47. Qd5 {[%emt 0:00:13]} Kg7 {[%emt 0:00:07]} 48. Be6 {[%emt 0:00:08]} h5 {[%emt 0:00:24]} 49. Qc5 {[%emt 0:00:07]} Qxb2 {[%emt 0:00:04]} 50. d7 {[%emt 0:00:08]} Nf3+ {[%emt 0:00:14]} 51. Kg3 {[%emt 0:00:02]} h4+ {[%emt 0:00:16]} 52. Kxf3 {[%emt 0:00:02]} Qc3+ {[%emt 0:00:02]} 53. Qe3 1-0